fUSD/lending_fUSD_20241003
["ID","MTS","AMOUNT","RATE_DAILY","PERIOD"]
[339798822,1727987593505,-3041.51,0.0003863,120]
[339798823,1727987593515,-1088.33,0.0003863,120]
[339798824,1727987593524,-678.3,0.0003863,120]
[339798825,1727987593534,-809.97,0.0003863,120]
[339798826,1727987593543,-617.35,0.0003863,120]
[339798827,1727987593553,-427.35465186,0.0003863,120]
[339798828,1727987593562,-504.49,0.0003863,120]
[339798829,1727987593572,-2582.55,0.0003863,14]
[339798830,1727987593581,-821.22,0.0003863,120]
[339798831,1727987593590,-1192.92,0.0003863,120]
[339798832,1727987593601,-2036.76,0.0003863,2]
[339798833,1727987593610,-752.83,0.0003863,120]
[339798834,1727987593619,-696.33,0.0003863,120]
[339798835,1727987593628,-1822.29,0.0003863,120]
[339798836,1727987593638,-500.0,0.0003863,120]
[339798837,1727987593647,-1595.23,0.0003863,120]
[339798838,1727987593657,-500.0,0.0003863,120]
[339798839,1727987593666,-1676.96,0.0003863,120]
[339798840,1727987593675,-1430.65,0.0003863,120]
[339798841,1727987593685,-1022.58,0.0003863,120]
[339798842,1727987593694,-572.51,0.0003863,120]
[339798843,1727987593703,-743.36,0.0003863,120]
[339798844,1727987593712,-534.34,0.0003863,120]
[339798845,1727987593722,-722.75,0.0003863,120]
[339798846,1727987593731,-2933.87,0.0003863,120]
[339798847,1727987593740,-891.75,0.0003863,120]
[339798848,1727987593749,-734.12,0.0003863,120]
[339798849,1727987593759,-830.44,0.0003863,120]
[339798850,1727987593769,-2736.92,0.0003863,120]
[339798851,1727987593778,-1668.6,0.0003863,120]
[339798852,1727987593787,-2840.63,0.0003863,120]
[339798853,1727987593796,-963.2,0.0003863,120]
[339798854,1727987593806,-3064.64,0.0003863,120]
[339798855,1727987593815,-895.53,0.0003863,120]
[339798856,1727987593825,-603.25,0.0003863,120]
[339798857,1727987593834,-893.66,0.0003863,120]
[339798858,1727987593843,-1265.22,0.0003863,120]
[339798859,1727987593853,-648.93,0.0003863,120]
[339798860,1727987593973,-702.69,0.0003863,120]
[339798861,1727987593982,-912.75,0.0003863,120]
[339798862,1727987593992,-625.95,0.0003863,120]
[339798863,1727987594001,-500.0,0.0003863,120]
[339798864,1727987594010,-589.87,0.0003863,120]
[339798865,1727987594020,-904.15,0.0003863,120]
[339798866,1727987594030,-809.38,0.0003863,120]
[339798867,1727987594039,-2849.48,0.0003863,120]
[339798868,1727987594048,-1583.67,0.0003863,120]
[339798869,1727987594058,-1559.78,0.0003863,120]
[339798870,1727987594067,-526.9,0.0003863,120]
[339798871,1727987594077,-887.97,0.0003863,120]
[339798872,1727987594086,-522.66,0.0003863,120]
[339798873,1727987594095,-608.69,0.0003863,120]
[339798874,1727987594105,-1196.23,0.0003863,120]
[339798875,1727987594115,-1891.17,0.0003863,120]
[339798876,1727987594124,-1435.23,0.0003863,120]
[339798877,1727987594133,-734.62,0.0003863,120]
[339798878,1727987594144,-1907.44,0.0003863,120]
[339798879,1727987594154,-954.92,0.0003863,30]
[339798880,1727987594163,-760.37,0.0003863,120]
[339798881,1727987594172,-1267.83,0.0003863,120]
[339798882,1727987594182,-3152.28,0.0003863,120]
[339798883,1727987594192,-4273.85,0.0003863,2]
[339798884,1727987594201,-2240.67,0.0003863,120]
[339798885,1727987594211,-692.31,0.0003863,120]
[339798886,1727987594221,-566.42,0.0003863,120]
[339798887,1727987594231,-1375.15,0.0003863,120]
[339798888,1727987594241,-1352.94,0.0003863,120]
[339798889,1727987594250,-2143.59,0.0003863,120]
[339798890,1727987594260,-2552.25,0.0003863,120]
[339798891,1727987594270,-807.0,0.0003863,120]
[339798892,1727987594280,-500.0,0.0003863,120]
[339798893,1727987594289,-1929.43,0.0003863,120]
[339798894,1727987594298,-227.18559049,0.0003863,120]
[339798895,1727987594307,-687.7,0.0003863,120]
[339798896,1727987594316,-685.66,0.0003863,120]
[339798897,1727987594326,-1124.73,0.0003863,120]
[339798898,1727987594335,-1267.04,0.0003863,120]
[339798899,1727987594345,-1073.96,0.0003863,120]
[339798900,1727987594354,-515.88,0.0003863,120]
[339798901,1727987594363,-687.49,0.0003863,120]
[339798902,1727987594373,-924.47,0.0003863,120]
[339798903,1727987594383,-3529.62,0.0003863,120]
[339798904,1727987594392,-2122.92,0.0003863,120]
[339798905,1727987594401,-583.93,0.0003863,120]
[339798906,1727987594411,-1443.8,0.0003863,120]
[339798907,1727987594420,-598.1,0.0003863,120]
[339798908,1727987594430,-1130.17,0.0003863,120]
[339798909,1727987594439,-501.05822991,0.0003863,120]
[339798910,1727987594449,-512.25,0.0003863,120]
[339798911,1727987594458,-739.66,0.0003863,120]
[339798912,1727987594468,-2221.7,0.0003863,120]
[339798913,1727987594478,-753.47,0.0003863,120]
[339798914,1727987594488,-878.47,0.0003863,120]
[339798915,1727987594497,-2105.23,0.0003863,120]
[339798916,1727987594508,-1101.24,0.0003863,120]
[339798917,1727987594517,-880.23,0.0003863,120]
[339798918,1727987594527,-594.49,0.0003863,120]
[339798919,1727987594536,-500.0,0.0003863,120]
[339798920,1727987594546,-1746.33,0.0003863,120]
[339798921,1727987594556,-983.59,0.0003863,120]
[339798922,1727987594565,-1535.26,0.0003863,120]
[339798923,1727987594575,-3156.06,0.0003863,120]
[339798924,1727987594586,-889.14,0.0003863,120]
[339798925,1727987594596,-754.45,0.0003863,120]
[339798926,1727987594607,-640.32,0.0003863,120]
[339798927,1727987594616,-2375.19,0.0003863,120]
[339798928,1727987594626,-580.84,0.0003863,120]
[339798929,1727987594637,-2171.15,0.0003863,120]
[339798930,1727987594647,-652.15,0.0003863,120]
[339798931,1727987594657,-970.9,0.0003863,120]
[339798932,1727987594667,-576.98,0.0003863,120]
[339798933,1727987594676,-2322.76,0.0003863,120]
[339798934,1727987594686,-2446.1,0.0003863,120]
[339798935,1727987594696,-500.0,0.0003863,120]
[339798936,1727987594706,-569.39,0.0003863,120]
[339798937,1727987594715,-865.83,0.0003863,120]
[339798938,1727987594725,-559.14,0.0003863,120]
[339798939,1727987594735,-526.15,0.0003863,120]
[339798940,1727987594744,-196.03622191,0.0003863,120]
[339798941,1727987594753,-1022.47,0.0003863,120]
[339798942,1727987594763,-1404.02,0.0003863,120]
[339798943,1727987594773,-500.0,0.0003863,120]
[339798944,1727987594783,-641.91,0.0003863,120]
[339798945,1727987594793,-926.29,0.0003863,120]
[339798946,1727987594802,-796.9,0.0003863,120]
[339798947,1727987594812,-2021.14,0.0003863,120]
[339798948,1727987594821,-3420.05,0.0003863,120]
[339798949,1727987594831,-585.28,0.0003863,120]
[339798950,1727987594840,-500.0,0.0003863,120]
[339798951,1727987594849,-920.88,0.0003863,120]
[339798952,1727987594859,-1372.22,0.0003863,120]
[339798953,1727987594869,-501.73,0.0003863,120]
[339798954,1727987595088,-1014.09,0.0003863,120]
[339798955,1727987595099,-2342.53,0.0003863,120]
[339798956,1727987595108,-849.67,0.0003863,120]
[339798957,1727987595118,-503.33,0.0003863,120]
[339798958,1727987595128,-619.95,0.0003863,120]
[339798959,1727987595138,-650.32,0.0003863,120]
[339798960,1727987595148,-4513.04,0.0003863,120]
[339798961,1727987595157,-697.86,0.0003863,120]
[339798962,1727987595167,-1906.45,0.0003863,120]
[339798963,1727987595177,-635.24533846,0.0003863,120]
[339798964,1727987595187,-1342.8,0.0003863,120]
[339798965,1727987595197,-4469.7,0.0003863,120]
[339798966,1727987595207,-2820.31,0.0003863,120]
[339798967,1727987595217,-1714.59,0.0003863,120]
[339798968,1727987595227,-1567.97,0.0003863,120]
[339798969,1727987595236,-858.96,0.0003863,120]
[339798970,1727987595246,-1071.24,0.0003863,120]
[339798971,1727987595256,-1083.26,0.0003863,120]
[339798972,1727987595266,-1923.73,0.0003863,120]
[339798973,1727987595275,-3953.73,0.0003863,120]
[339798974,1727987595285,-646.54,0.0003863,120]
[339798975,1727987595294,-1541.86,0.0003863,120]
[339798976,1727987595304,-2326.51,0.0003863,120]
[339798977,1727987595314,-825.35,0.0003863,120]
[339798978,1727987595323,-1401.87,0.0003863,120]
[339798979,1727987595333,-8162.3,0.0003863,120]
[339798980,1727987595344,-2202.86,0.0003863,3]
[339798981,1727987595354,-1721.6,0.0003863,120]
[339798982,1727987595364,-1824.09,0.0003863,120]
[339798983,1727987595374,-3694.14,0.0003863,120]
[339798984,1727987595383,-648.29,0.0003863,120]
[339798985,1727987595393,-797.25,0.0003863,120]
[339798986,1727987595403,-1962.84,0.0003863,120]
[339798987,1727987595413,-770.99,0.0003863,120]
[339798988,1727987595422,-1812.58,0.0003863,120]
[339798989,1727987595432,-1106.97,0.0003863,120]
[339798990,1727987595441,-995.24,0.0003863,120]
[339798991,1727987595450,-1533.42,0.0003863,120]
[339798992,1727987595459,-1245.45,0.0003863,120]
[339798993,1727987595469,-2708.28,0.0003863,120]
[339798994,1727987595479,-919.76,0.0003863,120]
[339798995,1727987595488,-1028.68,0.0003863,120]
[339798996,1727987595498,-2392.87,0.0003863,120]
[339798997,1727987595508,-1219.91,0.0003863,120]
[339798998,1727987595524,-1971.05,0.0003863,120]
[339798999,1727987595533,-967.14,0.0003863,120]
[339799000,1727987595543,-11039.47,0.0003863,120]
[339799001,1727987595552,-1835.01,0.0003863,120]
[339799002,1727987595562,-647.95,0.0003863,120]
[339799003,1727987595572,-1066.51,0.0003863,120]
[339799004,1727987595581,-2065.61,0.0003863,120]
[339799005,1727987595590,-2041.33,0.0003863,120]
[339799006,1727987595602,-701.71,0.0003863,120]
[339799007,1727987595611,-512.38,0.0003863,120]
[339799008,1727987595621,-527.76,0.0003863,120]
[339799009,1727987595630,-527.0,0.0003863,120]
[339799010,1727987595640,-1302.4,0.0003863,120]
[339799011,1727987595649,-968.42,0.0003863,120]
[339799012,1727987595659,-1041.18,0.0003863,120]
[339799013,1727987595669,-1510.82,0.0003863,120]
[339799014,1727987595679,-2058.43,0.0003863,120]
[339799015,1727987595688,-1635.85,0.0003863,120]
[339799016,1727987595698,-2566.99,0.0003863,120]
[339799017,1727987595707,-500.52,0.0003863,120]
[339799018,1727987595718,-1123.06,0.0003863,120]
[339799019,1727987595727,-1766.39,0.0003863,120]
[339799020,1727987595737,-1421.18,0.0003863,120]
[339799021,1727987595746,-2301.76,0.0003863,120]
[339799022,1727987595756,-1093.77,0.0003863,120]
[339799023,1727987595766,-2041.08,0.0003863,120]
[339799024,1727987595775,-1056.72,0.0003863,120]
[339799025,1727987595785,-4824.18,0.0003863,120]
[339799026,1727987595794,-575.99,0.0003863,120]
[339799027,1727987595803,-2539.88,0.0003863,120]
[339799028,1727987595813,-1031.81,0.0003863,120]
[339799029,1727987595823,-1058.32,0.0003863,120]
[339799030,1727987595833,-629.81642203,0.0003863,120]
[339799031,1727987595843,-2770.27,0.0003863,120]
[339799032,1727987595852,-2126.28,0.0003863,120]
[339799033,1727987595861,-3109.58,0.0003863,120]
[339799034,1727987595871,-1989.39,0.0003863,120]
[339799035,1727987595885,-2838.83,0.0003863,120]
[339799036,1727987595895,-2454.73,0.0003863,120]
[339799037,1727987595904,-2489.9,0.0003863,120]
[339799038,1727987595914,-1548.63,0.0003863,120]
[339799039,1727987595924,-1539.86,0.0003863,120]
[339799040,1727987595934,-1135.51,0.0003863,120]
[339799041,1727987595943,-751.5,0.0003863,120]
[339799042,1727987595953,-26307.75,0.0003863,120]
[339799043,1727987595963,-1359.32,0.0003863,120]
[339799044,1727987595972,-920.13,0.0003863,120]
[339799045,1727987595982,-2373.28,0.0003863,120]
[339799046,1727987595991,-723.9,0.0003863,120]
[339799047,1727987596002,-159.91481775,0.0003863,120]
[339799048,1727987596013,-683.05,0.0003863,120]
[339799049,1727987596023,-1328.33,0.0003863,120]
[339799050,1727987596032,-1718.99,0.0003863,120]
[339799051,1727987596042,-500.0,0.0003863,120]
[339799052,1727987596051,-2515.59,0.0003863,120]
[339799053,1727987596060,-953.41,0.0003863,120]
[339799054,1727987596070,-876.22,0.0003863,120]
[339799055,1727987596080,-2264.01,0.0003863,120]
[339799056,1727987596090,-2588.02,0.0003863,120]
[339799057,1727987596100,-1281.35,0.0003863,120]
[339799058,1727987596109,-1057.1,0.0003863,120]
[339799059,1727987596119,-1543.66,0.0003863,120]
[339799060,1727987596129,-567.28,0.0003863,120]
[339799061,1727987596139,-622.45,0.0003863,120]
[339799062,1727987596149,-1173.73,0.0003863,120]
[339799063,1727987596159,-831.03,0.0003863,120]
[339799064,1727987596168,-574.46,0.0003863,120]
[339799065,1727987596178,-605.72,0.0003863,120]
[339799066,1727987596189,-656.14,0.0003863,24]
[339799067,1727987596199,-999.57,0.0003863,120]
[339799068,1727987596209,-1059.55,0.0003863,120]
[339799069,1727987596219,-1114.36,0.0003863,120]
[339799070,1727987596229,-2557.98,0.0003863,120]
[339799071,1727987596239,-2619.08,0.0003863,120]
[339799072,1727987596248,-985.85,0.0003863,120]
[339799073,1727987596259,-2196.8,0.0003863,120]
[339799074,1727987596269,-1368.57,0.0003863,120]
[339799075,1727987596279,-534.46,0.0003863,120]
[339799076,1727987596289,-623.45,0.0003863,120]
[339799077,1727987596299,-1760.97,0.0003863,120]
[339799078,1727987596308,-4833.89,0.0003863,120]
[339799079,1727987596607,-1036.03,0.0003863,120]
[339799080,1727987596617,-613.95,0.0003863,120]
[339799081,1727987596626,-1295.57,0.0003863,120]
[339799082,1727987596636,-1100.59,0.0003863,120]
[339799083,1727987596645,-1437.23,0.0003863,120]
[339799084,1727987596655,-581.64,0.0003863,120]
[339799085,1727987596664,-500.0,0.0003863,120]
[339799086,1727987596673,-1584.05,0.0003863,120]
[339799087,1727987596683,-1739.53,0.0003863,120]
[339799088,1727987596692,-780.59,0.0003863,120]
[339799089,1727987596701,-567.89,0.0003863,120]
[339799090,1727987596711,-504.47,0.0003863,120]
[339799091,1727987596721,-10179.37,0.0003863,120]
[339799092,1727987596730,-1002.66,0.0003863,120]
[339799093,1727987596740,-859.91,0.0003863,120]
[339799094,1727987596749,-8270.07,0.0003863,21]
[339799095,1727987596760,-669.41,0.0003863,120]
[339799096,1727987596770,-2304.02,0.0003863,120]
[339799097,1727987596779,-631.12,0.0003863,120]
[339799098,1727987596789,-1138.44,0.0003863,120]
[339799099,1727987596798,-4586.08,0.0003863,120]
[339799100,1727987596808,-151.100309,0.00038648,120]
[339799101,1727987596817,-151.100317,0.00038648,119]
[339799102,1727987596826,-2251.5019805,0.00038687,7]
[339799103,1727987596835,-3007.50576663,0.00038687,7]
[339799104,1727987596845,-2899.87242423,0.00038687,7]
[339799105,1727987596854,-200.0,0.000387,21]
[339799106,1727987596863,-151.100218,0.00038748,120]
[339799107,1727987596873,-1000000.0,0.0003875,120]
[339799108,1727987596885,-4294.0375607,0.00038761,60]
[339799109,1727987596895,-5015.27300425,0.000388,120]
[339799110,1727987596904,-151.100317,0.00038848,119]
[339799111,1727987596913,-100861.92600785,0.000389,120]
[339799112,1727987596923,-379.75850332,0.000389,30]
[339799113,1727987596932,-1830.04,0.00038904,120]
[339799114,1727987596942,-1465.14,0.00038904,120]
[339799115,1727987596951,-731.74,0.00038904,120]
[339799116,1727987596962,-1375.31,0.00038904,120]
[339799117,1727987596971,-668.57,0.00038904,120]
[339799118,1727987596981,-245.3135207,0.00038904,120]
[339799119,1727987596991,-1062.68,0.00038904,120]
[339799120,1727987597000,-1108.65,0.00038904,120]
[339799121,1727987597010,-1917.75,0.00038904,120]
[339799122,1727987597019,-1239.66,0.00038904,120]
[339799123,1727987597029,-749.5,0.00038904,120]
[339799124,1727987597038,-1219.3,0.00038904,120]
[339799125,1727987597048,-1706.35,0.00038904,120]
[339799126,1727987597057,-1816.28,0.00038904,120]
[339799127,1727987597067,-608.59,0.00038904,120]
[339799128,1727987597077,-688.2,0.00038904,120]
[339799129,1727987597087,-818.32,0.00038904,120]
[339799130,1727987597096,-2173.75,0.00038904,120]
[339799131,1727987597106,-721.06,0.00038904,120]
[339799132,1727987597116,-2649.5,0.00038904,120]
[339799133,1727987597126,-500.0,0.00038904,120]
[339799134,1727987597136,-952.32,0.00038904,120]
[339799135,1727987597147,-508.75,0.00038904,120]
[339799136,1727987597156,-447.26061733,0.00038904,120]
[339799137,1727987597166,-2782.16,0.00038904,120]
[339799138,1727987597175,-799.66,0.00038904,120]
[339799139,1727987597185,-528.54,0.00038904,120]
[339799140,1727987597195,-1116.48,0.00038904,120]
[339799141,1727987597204,-667.6,0.00038904,120]
[339799142,1727987597214,-516.86,0.00038904,120]
[339799143,1727987597223,-577.36,0.00038904,120]
[339799144,1727987597233,-2275.0,0.00038904,120]
[339799145,1727987597243,-1181.76,0.00038904,120]
[339799146,1727987597252,-1059.01,0.00038904,120]
[339799147,1727987597262,-908.96,0.00038904,120]
[339799148,1727987597272,-806.47,0.00038904,120]
[339799149,1727987597281,-678.32,0.00038904,120]
[339799150,1727987597292,-1850.2,0.00038904,120]
[339799151,1727987597302,-532.65,0.00038904,120]
[339799152,1727987597313,-951.98,0.00038904,120]
[339799153,1727987597322,-3113.1,0.00038904,120]
[339799154,1727987597332,-952.18,0.00038904,120]
[339799155,1727987597342,-1578.27,0.00038904,120]
[339799156,1727987597352,-799.85,0.00038904,120]
[339799157,1727987597362,-708.6,0.00038904,120]
[339799158,1727987597371,-584.82,0.00038904,120]
[339799159,1727987597380,-560.83,0.00038904,120]
[339799160,1727987597390,-610.78,0.00038904,120]
[339799161,1727987597399,-1249.01,0.00038904,120]
[339799162,1727987597409,-1225.26,0.00038904,120]
[339799163,1727987597419,-817.82,0.00038904,120]
[339799164,1727987597428,-911.79,0.00038904,120]
[339799165,1727987597438,-517.59,0.00038904,120]
[339799166,1727987597448,-1292.49,0.00038904,7]
[339799167,1727987597457,-762.72,0.00038904,120]
[339799168,1727987597466,-1184.87,0.00038904,120]
[339799169,1727987597475,-1701.57,0.00038904,120]
[339799170,1727987597485,-714.2,0.00038904,120]
[339799171,1727987597494,-1396.71,0.00038904,120]
[339799172,1727987597504,-676.51,0.00038904,120]
[339799173,1727987597514,-1713.42,0.00038904,120]
[339799174,1727987597523,-543.4,0.00038904,120]
[339799175,1727987597533,-615.69,0.00038904,120]
[339799176,1727987597542,-675.57,0.00038904,120]
[339799177,1727987597552,-822.0,0.00038904,120]
[339799178,1727987597561,-781.4,0.00038904,120]
[339799179,1727987597571,-747.69,0.00038904,120]
[339799180,1727987597580,-500.0,0.00038904,120]
[339799181,1727987597590,-911.34,0.00038904,120]
[339799182,1727987597600,-617.77,0.00038904,120]
[339799183,1727987597609,-500.0,0.00038904,120]
[339799184,1727987597620,-1099.61,0.00038904,120]
[339799185,1727987597632,-605.0,0.00038904,120]
[339799186,1727987597643,-1245.73,0.00038904,120]
[339799187,1727987597652,-614.52,0.00038904,120]
[339799188,1727987597662,-570.35,0.00038904,120]
[339799189,1727987597672,-806.75,0.00038904,120]
[339799190,1727987597683,-761.4,0.00038904,120]
[339799191,1727987597694,-1016.56,0.00038904,120]
[339799192,1727987597704,-908.19,0.00038904,120]
[339799193,1727987597714,-650.02,0.00038904,120]
[339799194,1727987597725,-2907.54,0.00038904,120]
[339799195,1727987597735,-1955.84,0.00038904,120]
[339799196,1727987597745,-666.23,0.00038904,120]
[339799197,1727987597756,-1476.07,0.00038904,120]
[339799198,1727987597766,-343.78326658,0.00038904,7]
[339799199,1727987597775,-664.13,0.00038904,120]
[339799200,1727987597785,-580.92,0.00038904,120]
[339799201,1727987597794,-559.23,0.00038904,120]
[339799202,1727987597803,-619.0,0.00038904,120]
[339799203,1727987597813,-682.12,0.00038904,120]
[339799204,1727987597822,-662.07,0.00038904,120]
[339799205,1727987597832,-1017.64,0.00038904,120]
[339799206,1727987597841,-1843.32,0.00038904,120]
[339799207,1727987597851,-903.96,0.00038904,120]
[339799208,1727987597861,-929.85,0.00038904,120]
[339799209,1727987597870,-1244.9,0.00038904,120]
[339799210,1727987597885,-2059.5,0.00038904,120]
[339799211,1727987597894,-1208.85,0.00038904,120]
[339799212,1727987597904,-1392.18,0.00038904,120]
[339799213,1727987597914,-1754.22,0.00038904,120]
[339799214,1727987597923,-838.34,0.00038904,120]
[339799215,1727987597933,-3096.26,0.00038904,120]
[339799216,1727987597942,-767.37,0.00038904,120]
[339799217,1727987597952,-1262.93,0.00038904,120]
[339799218,1727987597962,-546.33,0.00038904,120]
[339799219,1727987597971,-1915.72,0.00038904,120]
[339799220,1727987597981,-900.49,0.00038904,120]
[339799221,1727987597991,-871.88,0.00038904,120]
[339799222,1727987598000,-542.05,0.00038904,120]
[339799223,1727987598010,-1246.58,0.00038904,120]
[339799224,1727987598019,-755.2,0.00038904,120]
[339799225,1727987598028,-515.39,0.00038904,120]
[339799226,1727987598037,-1449.61,0.00038904,120]
[339799227,1727987598047,-615.97,0.00038904,120]
[339799228,1727987598056,-828.98,0.00038904,120]
[339799229,1727987598066,-522.48,0.00038904,120]
[339799230,1727987598075,-769.93,0.00038904,120]
[339799231,1727987598084,-1535.42,0.00038904,120]
[339799232,1727987598093,-692.01,0.00038904,120]
[339799233,1727987598103,-1322.47,0.00038904,120]
[339799234,1727987598112,-617.57,0.00038904,120]
[339799235,1727987598122,-3041.51,0.00038904,120]
[339799236,1727987598132,-685.28,0.00038904,120]
[339799237,1727987598141,-1088.33,0.00038904,120]
[339799238,1727987598151,-678.3,0.00038904,120]
[339799239,1727987598161,-809.97,0.00038904,120]
[339799240,1727987598170,-617.35,0.00038904,120]
[339799241,1727987598180,-504.49,0.00038904,120]
[339799242,1727987598190,-2582.55,0.00038904,14]
[339799243,1727987598199,-821.22,0.00038904,120]
[339799244,1727987598208,-1192.92,0.00038904,120]
[339799245,1727987598218,-2036.76,0.00038904,2]
[339799246,1727987598228,-752.83,0.00038904,120]
[339799247,1727987598237,-696.33,0.00038904,120]
[339799248,1727987598246,-1822.29,0.00038904,120]
[339799249,1727987598256,-592.58687901,0.00038904,120]
[339799250,1727987598266,-1595.23,0.00038904,120]
[339799251,1727987598276,-276.03604577,0.00038904,120]
[339799252,1727987598285,-1676.96,0.00038904,120]
[339799253,1727987598295,-1430.65,0.00038904,120]
[339799254,1727987598305,-1022.58,0.00038904,120]
[339799255,1727987598314,-572.51,0.00038904,120]
[339799256,1727987598324,-743.36,0.00038904,120]
[339799257,1727987598333,-534.34,0.00038904,120]
[339799258,1727987598343,-722.75,0.00038904,120]
[339799259,1727987598352,-2933.87,0.00038904,120]
[339799260,1727987598361,-891.75,0.00038904,120]
[339799261,1727987598371,-734.12,0.00038904,120]
[339799262,1727987598380,-830.44,0.00038904,120]
[339799263,1727987598389,-2736.92,0.00038904,120]
[339799264,1727987598399,-1668.6,0.00038904,120]
[339799265,1727987598408,-2840.63,0.00038904,120]
[339799266,1727987598418,-963.2,0.00038904,120]
[339799267,1727987598428,-3064.64,0.00038904,120]
[339799268,1727987598437,-895.53,0.00038904,120]
[339799269,1727987598447,-603.25,0.00038904,120]
[339799270,1727987598456,-893.66,0.00038904,120]
[339799271,1727987598466,-1265.22,0.00038904,120]
[339799272,1727987598475,-648.93,0.00038904,120]
[339799273,1727987598485,-702.69,0.00038904,120]
[339799274,1727987598495,-912.75,0.00038904,120]
[339799275,1727987598504,-625.95,0.00038904,120]
[339799276,1727987598513,-589.87,0.00038904,120]
[339799277,1727987598523,-904.15,0.00038904,120]
[339799278,1727987598533,-500.0,0.00038904,120]
[339799279,1727987598542,-809.38,0.00038904,120]
[339799280,1727987598552,-2849.48,0.00038904,120]
[339799281,1727987598561,-1583.67,0.00038904,120]
[339799282,1727987598570,-1559.78,0.00038904,120]
[339799283,1727987598579,-526.9,0.00038904,120]
[339799284,1727987598588,-887.97,0.00038904,120]
[339799285,1727987598597,-522.66,0.00038904,120]
[339799286,1727987598607,-608.69,0.00038904,120]
[339799287,1727987598616,-1196.23,0.00038904,120]
[339799288,1727987598626,-1891.17,0.00038904,120]
[339799289,1727987598635,-1435.23,0.00038904,120]
[339799290,1727987598644,-734.62,0.00038904,120]
[339799291,1727987598654,-1907.44,0.00038904,120]
[339799292,1727987598663,-954.92,0.00038904,30]
[339799293,1727987598673,-760.37,0.00038904,120]
[339799294,1727987598682,-1267.83,0.00038904,120]
[339799295,1727987598691,-3152.28,0.00038904,120]
[339799296,1727987598700,-4273.85,0.00038904,2]
[339799297,1727987598709,-2240.67,0.00038904,120]
[339799298,1727987598718,-692.31,0.00038904,120]
[339799299,1727987598727,-566.42,0.00038904,120]
[339799300,1727987598737,-1375.15,0.00038904,120]
[339799301,1727987598746,-1352.94,0.00038904,120]
[339799302,1727987598756,-2143.59,0.00038904,120]
[339799303,1727987598767,-2552.25,0.00038904,120]
[339799304,1727987598776,-807.0,0.00038904,120]
[339799305,1727987598785,-500.0,0.00038904,120]
[339799306,1727987598795,-1929.43,0.00038904,120]
[339799307,1727987598804,-687.7,0.00038904,120]
[339799308,1727987598813,-685.66,0.00038904,120]
[339799309,1727987598823,-1124.73,0.00038904,120]
[339799310,1727987598832,-1267.04,0.00038904,120]
[339799311,1727987598842,-1073.96,0.00038904,120]
[339799312,1727987598851,-515.88,0.00038904,120]
[339799313,1727987598860,-687.49,0.00038904,120]
[339799314,1727987598870,-924.47,0.00038904,120]
[339799315,1727987598882,-3529.62,0.00038904,120]
[339799316,1727987598892,-2122.92,0.00038904,120]
[339799317,1727987598902,-583.93,0.00038904,120]
[339799318,1727987598911,-1443.8,0.00038904,120]
[339799319,1727987598921,-598.1,0.00038904,120]
[339799320,1727987598930,-1130.17,0.00038904,120]
[339799321,1727987598940,-512.25,0.00038904,120]